Cogmind - Beta 13 @@@ ROGUE MODE // 2024.04.20 @ 02:05:08 Player: Cherman0 Result: Self-destructed Performance ------------- Evolutions (6) 3000 Regions Visited (16) 3200 Robots Destroyed (248) 1240 Value Destroyed (10704) 10704 Prototype IDs (53) 1060 Alien Tech Used (0) 0 Bonus (4307) 4307 TOTAL SCORE: 23511 Bonus ------- High Alert Combat Kills 1764 Follower Combat Kills 1911 Entered Garrisons 400 Network Hubs Disabled 400 Aligned with FarCom 300 Built Enhanced Grunts 300 A7 Reached Mainframe 300 Met R17 at Cetus 500 Friendly Fire -1568 Cogmind --------- Core Integrity 739/1150 Matter 10/300 Energy 188/190 System Corruption 7% Temperature Critical (531) Movement Immobile (Siege) Ox1 Location -4/Factory Parts ------- > --- POWER (2) -------- Light Quantum Reactor > --- PROPULSION (6) --- Armored Heavy Treads > --- UTILITY (7) ------ Centrium Medium Armor Plating Experimental Thermal Shield > --- WEAPON (4) ------- Advanced KE Penetrator Enhanced Gauss Cannon Hardcell Cannon Heavy Gauss Cannon > --- INVENTORY (5) ---- Advanced Coolant Injector Improved Kinecellerator Centrium Medium Armor Plating Hardcell Cannon Improved Plasma Cutter Peak State ------------ > --- POWER ------------ Neutrino Core Reinforced Quantum Reactor > --- PROPULSION ------- Heavy Treads Armored Heavy Treads Armored Heavy Treads > --- UTILITY ---------- Improved Cooling System Huge Storage Unit Layered Heavy Armor Plating Centrium Medium Armor Plating Experimental Thermal Shield Improved Force Field > --- WEAPON ----------- Long-range Proton Cannon Advanced KE Penetrator Advanced KE Penetrator Great Maul > --- INVENTORY -------- Reinforced Quantum Reactor Improved Medium Treads Improved Medium Treads Improved Medium Treads Armored Medium Treads Advanced Coolant Injector Energy Well Energy Well Advanced Energy Well High-capacity Matter Pod Improved Signal Interpreter Improved Kinecellerator Improved Kinecellerator Transmission Jammer Centrium Medium Armor Plating Centrium Medium Armor Plating Centrium Medium Armor Plating Tesla Rifle Advanced Variable Charge Gun Matter Neutralizer Heavy Gauss Cannon Heavy Shock Bomb Launcher Rocket Launcher Improved Plasma Cutter [Rating: 140] Favorites ----------- Power Light Nuclear Core Engine Ion Engine Power Core Light Nuclear Core Reactor Quantum Reactor Propulsion Armored Treads Treads Armored Treads Leg Aluminum Leg Wheel Constructs Flight Unit Improved VTOL Module Utility Huge Storage Unit Device Improved Heat Sink Storage Huge Storage Unit Processor Machine Analyzer Hackware Hacking Suite Protection Hardened Medium Armor Plating Weapon Advanced KE Penetrator Energy Gun Advanced Beam Rifle Energy Cannon Beam Cannon Ballistic Gun Advanced KE Penetrator Ballistic Cannon Light Cannon Launcher Rocket Launcher Special Weapon Plasma Cutter Impact Weapon Great Maul Special Melee Weapon Advanced Datajack Build | -11 -10 -10 -10 -9 -8 -8 -8 -8 -6 -6 -6 -6 -6 -5 -5 -4 ------- Run | Yrd Mat Min Exi Min Mat Sto Gar Rec Fac Ext Cet Arc Hub Fac Gar Fac Slots Evolved 12 | . . . . . 4 . . . 4 . . . . 2 . 2 Power 1 | . . . . . . . . . . . . . . . . 1 Propulsion 4 | . . . . . 2 . . . 2 . . . . . . . Utility 5 | . . . . . 2 . . . . . . . . 2 . 1 Weapon 2 | . . . . . . . . . 2 . . . . . . . Parts Attached 244 | 1 11 4 . 10 21 21 24 11 30 11 17 11 3 28 21 20 Power 25 | . 3 1 . 2 . 3 2 1 5 . 2 . . 1 2 3 Engine 6 | . 3 1 . 1 . . . . 1 . . . . . . . Core 13 | . . . . 1 . 3 2 1 4 . . . . . 1 1 Reactor 6 | . . . . . . . . . . . 2 . . 1 1 2 Propulsion 50 | . 2 . . 4 10 2 2 5 5 2 3 2 . 7 5 1 Treads 47 | . 2 . . 4 10 1 2 5 5 2 3 1 . 7 4 1 Leg 2 | . . . . . . . . . . . . 1 . . 1 . Wheel . | . . . . . . . . . . . . . . . . . Hover . | . . . . . . . . . . . . . . . . . Flight 1 | . . . . . . 1 . . . . . . . . . . Utility 98 | 1 2 2 . 1 7 3 2 3 19 9 6 9 2 14 8 10 Device 40 | 1 1 1 . . 1 1 . 1 4 7 2 5 . 6 4 6 Storage 4 | . 1 1 . . . . . . . . . . . 1 . 1 Processor 1 | . . . . . . . . . 1 . . . . . . . Hackware 9 | . . . . . . . . . 6 . . . 1 2 . . Protection 44 | . . . . 1 6 2 2 2 8 2 4 4 1 5 4 3 Artifact . | . . . . . . . . . . . . . . . . . Weapon 71 | . 4 1 . 3 4 13 18 2 1 . 6 . 1 6 6 6 Energy Gun 22 | . 2 . . 2 3 4 7 2 . . 1 . . 1 . . Energy Cannon 5 | . 1 . . . . . . . . . . . . 1 1 2 Ballistic Gun 17 | . . 1 . . 1 5 2 . 1 . 4 . 1 1 1 . Ballistic Cannon 5 | . . . . 1 . 1 . . . . . . . . . 3 Launcher 13 | . 1 . . . . 2 5 . . . . . . 1 3 1 Special Weapon 1 | . . . . . . . . . . . 1 . . . . . Impact Weapon 7 | . . . . . . 1 4 . . . . . . 1 1 . Slashing Weapon . | . . . . . . . . . . . . . . . . . Piercing Weapon . | . . . . . . . . . . . . . . . . . Special Melee Weapon 1 | . . . . . . . . . . . . . . 1 . . Unidentified Prototypes 15 | . . . . . 1 4 . . 1 . 4 2 . 1 1 1 Corrupted Parts 8 | . . . . 3 . . . . 1 . 3 . . 1 . . System Corruption 30 | . . . . 11 . . . . 1 . 17 . . 1 . . Parts Lost 42 | . 3 1 . 7 . . 6 . 1 1 1 . 1 6 5 10 Power 7 | . 1 . . 2 . . 1 . 1 . . . . 2 . . Propulsion 8 | . . . . 2 . . 1 . . . . . . 1 2 2 Utility 17 | . . . . 1 . . 2 . . 1 1 . 1 2 3 6 Weapon 10 | . 2 1 . 2 . . 2 . . . . . . 1 . 2 Highest Loss Streak 6 | . 2 1 . 3 . . 3 . 1 1 1 . 1 2 2 6 To Critical Strikes 2 | . . . . . . . 1 . . . . . . 1 . . Average Slot Usage (%) 88 | . 99 99 100 96 99 99 97 86 70 80 65 58 59 82 86 70 Engine 3 | . 13 14 14 13 . . . . 1 . . . . . . . Core 4 | . . . . . 9 9 8 9 4 6 1 . . . 2 . Treads 29 | . 20 28 28 26 36 35 35 35 30 40 26 20 20 20 19 14 Device 8 | . 14 13 14 2 9 9 6 7 . 2 6 12 6 13 14 12 Storage 9 | . 14 14 14 14 9 9 9 9 6 6 6 6 6 5 5 4 Hackware 1 | . . . . . . . . . 9 2 . . 2 2 . . Protection 10 | . . . . 10 17 17 17 10 7 14 11 5 9 10 13 11 Energy Gun 6 | . 25 9 . 6 11 3 11 12 . . . . . . . . Energy Cannon 3 | . 2 14 14 13 . . . . . . . . . . 4 1 Ballistic Gun 5 | . . 4 14 1 5 10 3 1 5 6 5 6 6 11 10 7 Ballistic Cannon 1 | . . . . 6 1 . . . . . . . . . . 8 Impact Weapon 1 | . . . . . . 3 3 . . . . . . 5 4 1 Naked Turns . | . . . . . . . . . . . . . . . . . Heaviest Build 186 | 15 91 95 95 95 108 110 109 108 122 125 131 126 126 148 160 186 Greatest Support 240 | 20 40 40 40 40 84 82 84 88 128 132 240 240 240 240 217 190 Greatest Overweight (x) 4 | . 2 2 2 4 1 1 1 2 1 1 1 . . . 1 . Average Overweight (x) . | . 1 2 2 2 1 1 1 1 . . . . . . . . Largest Inventory Capacity 25 | 8 25 25 25 25 25 25 25 25 25 25 25 25 25 25 25 25 Average Capacity 24 | 8 20 25 25 25 25 25 25 25 25 25 25 25 25 25 25 24 Most Carried 25 | 6 20 24 25 25 25 25 25 23 25 25 25 24 23 21 25 25 Average Carried 22 | 5 11 22 24 23 24 24 23 20 23 24 24 23 22 16 19 24 Final Capacity 25 | 8 25 25 25 25 25 25 25 25 25 25 25 25 25 25 25 5 Final Carried 25 | 4 20 24 25 22 25 25 21 23 25 25 24 23 22 19 25 5 Scrap Engine Consumption 12 | . . . . . . . . 12 . . . . . . . . Constructs Created 3 | . . . . . . . . 3 . . . . . . . . Constructs Modified 1 | . . . . . . . . 1 . . . . . . . . Class Distribution -------------------- 47% | Mutant 16% | Scavenger-Mutant 14% | Scavenger-Tank 7% | Machinist-Tank 4% | Hacker-Skirmisher 3% | Tank Dominant Class ---------------- Mutant | -10/Materials Mutant | -10/Mines Mutant | -10/Exiles Mutant | -9/Mines Scavenger-Mutant | -8/Materials Scavenger-Mutant | -8/Storage Mutant | -8/Garrison Mutant | -8/Recycling Hacker-Skirmisher | -6/Factory Machinist-Tank | -6/Extension Scavenger-Tank | -6/Cetus Scavenger-Skirmisher | -6/Archives Scavenger-Tank | -6/Hub_04(d) Scavenger-Mutant | -5/Factory Scavenger-Tank | -5/Garrison Scavenger-Tank | -4/Factory Resources | -11 -10 -10 -10 -9 -8 -8 -8 -8 -6 -6 -6 -6 -6 -5 -5 -4 ----------- Run | Yrd Mat Min Exi Min Mat Sto Gar Rec Fac Ext Cet Arc Hub Fac Gar Fac Matter Collected 9040 | 210 236 433 . 189 341 465 394 100 1531 1200 541 606 347 667 931 849 Remotely 1279 | . . . . . . . . . 409 396 . 186 . 288 . . Salvage Created 10353 | 112 602 168 . 322 201 859 784 392 1849 1217 347 396 582 719 874 929 Parts 544 | 3 32 14 . 28 10 42 43 12 93 72 14 22 33 49 49 28 Haulers Intercepted 8 | . 1 . . . 2 4 . . 1 . . . . . . . Recyclers Shooed 8 | . . . . . . 3 . 3 . 1 . . 1 . . . Parts Field Recycled . | . . . . . . . . . . . . . . . . . Retrieved Matter . | . . . . . . . . . . . . . . . . . Parts Self-Destructed . | . . . . . . . . . . . . . . . . . Prevented . | . . . . . . . . . . . . . . . . . Kills | -11 -10 -10 -10 -9 -8 -8 -8 -8 -6 -6 -6 -6 -6 -5 -5 -4 ------- Run | Yrd Mat Min Exi Min Mat Sto Gar Rec Fac Ext Cet Arc Hub Fac Gar Fac Combat Hostiles Destroyed 175 | . 14 6 . 13 2 12 29 2 20 16 2 1 6 12 26 14 Guns 125 | . 11 1 . 1 2 12 15 2 20 16 2 1 6 11 16 9 Cannons 23 | . . 5 . 12 . . . . . . . . . . 1 5 AOE 27 | . 3 . . . . . 14 . . . . . . 1 9 . Classes Destroyed 18 | 2 4 . . 1 . 3 3 . 3 1 . 1 . . . . Worker 9 | . . . . . . 2 . . 1 1 . . 5 . . . Builder 5 | . . . . . . . . . . 1 . . 1 1 . 2 Tunneler 6 | 1 . 1 . 2 . . . . 1 1 . . . . . . Hauler 8 | . 1 . . . 2 4 . . 1 . . . . . . . Recycler 12 | 1 . . . . . 4 . 3 3 1 . . . . . . Mechanic 3 | . . . . . . 1 . . 1 . . . . . . 1 Operator 9 | . . . . . . . . . . . . 9 . . . . Watcher 18 | . 3 . . . . 2 . . 5 1 . . 4 1 . 2 Swarmer 47 | . 3 2 . 6 . 6 9 . . 3 . . . . 18 . Cutter 2 | . . . . . . . 2 . . . . . . . . . Grunt 67 | . 11 4 . 6 2 2 10 . 13 3 . . 4 3 3 6 Brawler 3 | . . . . 1 . . . . . . . . . 1 . 1 Duelist 2 | . . . . . . . . . 1 . . . . . . 1 Sentry 24 | . . . . . . 4 4 2 1 8 . 1 1 . 2 1 Specialist 3 | . . . . . . . 2 . . . . . . 1 . . Hunter 9 | . . . . . . . 2 . . . . . . 3 2 2 Programmer 12 | . . . . . . . . . 4 . . . 1 4 . 3 Behemoth 4 | . . . . . . . . . 1 2 . . . . 1 . Cetus Guard 2 | . . . . . . . . . . . 2 . . . . . Thug 1 | . . . . . . . . . . . 1 . . . . . Savage 2 | . . . . . . . . . . . 2 . . . . . Best Kill Streak 8 | 2 7 2 . 3 1 3 8 3 4 5 2 3 3 3 5 8 Combat Bots Only 8 | . 7 2 . 3 1 2 8 1 4 3 2 1 2 3 5 7 Max Kills in Single Turn 3 | 1 2 1 . 2 1 1 3 1 2 2 1 1 3 1 3 2 Gunslinging 1 | . 1 . . . . . 1 . . . . . . . . . Exploded 3 | . 2 . . . . . 3 . . . . . . 1 3 . Melee . | . . . . . . . . . . . . . . . . . Uniques/NPCs Destroyed . | . . . . . . . . . . . . . . . . . Combat | -11 -10 -10 -10 -9 -8 -8 -8 -8 -6 -6 -6 -6 -6 -5 -5 -4 -------- Run | Yrd Mat Min Exi Min Mat Sto Gar Rec Fac Ext Cet Arc Hub Fac Gar Fac Hostile Shots Fired 1175 | . 44 29 . 75 8 36 169 9 57 113 31 1 32 217 101 253 Missed 329 | . 16 9 . 24 1 8 61 . 15 38 13 1 8 64 31 40 Damage Taken 13468 | . 420 400 . 585 111 503 1743 147 858 624 331 . 907 2550 979 3310 Core 1089 | . 88 18 . 40 . 46 237 . 29 67 . . . 65 88 411 Absorbed by Shields 1543 | . . . . . . . . . . 214 165 . . 489 454 221 Reduced by Siege Mode 310 | . . . . . . . . . . . . . . . . 310 Redirected to Shielding 625 | . . . . . . . 46 9 89 99 56 . 120 93 113 . Ignored by Resistances 495 | . . . . . . . . . . 100 45 . . . 44 306 Regen/Repaired (Parts) 297 | . . . . . . 208 . . 89 . . . . . . . Core Remaining (%) 72 | 100 . . . 41 . . . 48 . . . . 88 . 84 . Volleys Fired 593 | 3 38 17 . 38 18 41 47 12 75 50 21 32 21 53 69 58 Largest 4 | 2 2 2 . 2 2 2 2 2 1 1 1 1 1 3 3 4 Hottest 242 | 80 90 100 . 110 110 55 122 122 60 60 60 60 60 103 151 242 Shots Fired 921 | 6 67 29 . 57 31 76 78 24 76 50 21 32 21 107 113 133 Gun 739 | 6 60 12 . 7 30 76 68 24 76 50 21 32 21 105 83 68 Cannon 153 | . 4 17 . 50 1 . . . . . . . . 1 18 62 Launcher 29 | . 3 . . . . . 10 . . . . . . 1 12 3 Special . | . . . . . . . . . . . . . . . . . Kinetic 646 | . . 9 . 26 11 70 16 . 76 50 21 32 21 105 83 126 Thermal 158 | . 8 17 . 31 20 6 52 24 . . . . . . . . Explosive 29 | . 3 . . . . . 10 . . . . . . 1 12 3 Electromagnetic 88 | 6 56 3 . . . . . . . . . . . 1 18 4 Robot Hit Streak 17 | 3 13 5 . 5 4 8 7 6 11 14 6 6 10 17 10 12 Robot Miss Streak 9 | 1 3 2 . 4 2 8 3 2 7 6 4 3 4 8 9 4 Penetration Max 1 | . . . . . . . . . . . . . . 1 1 1 Secondary Targets 9 | . 1 . . . . 1 4 . . . . . . 1 . 2 Max Gunslinging Chain 1 | . 1 . . . . 1 1 . . . . . . 1 . 1 Shots Hit Robots 636 | 4 46 19 . 29 18 62 47 16 71 45 20 32 18 69 55 85 Core Hits 430 | 2 27 7 . 16 7 26 46 5 64 39 26 29 24 27 40 45 Critical Kills 14 | . . . . . 1 1 . . . . . . . 5 2 5 Critical Parts Destroyed 26 | . . . . . . 3 . . . . . . . 7 10 6 Critical Strikes 51 | 1 . . . . 2 5 3 . . . . . . 13 13 14 Burn 5 | . . . . . 1 1 3 . . . . . . . . . Destroy 40 | . . . . . 1 1 . . . . . . . 13 13 12 Blast 2 | . . . . . . . . . . . . . . . . 2 Corrupt 1 | 1 . . . . . . . . . . . . . . . . Smash 3 | . . . . . . 3 . . . . . . . . . . Melee Attacks 58 | . . . . . . 21 24 . . . . . . . 12 1 Impact 58 | . . . . . . 21 24 . . . . . . . 12 1 Slashing . | . . . . . . . . . . . . . . . . . Piercing . | . . . . . . . . . . . . . . . . . Sneak Attacks 8 | . . . . . . 8 . . . . . . . . . . Combat Hostiles . | . . . . . . . . . . . . . . . . . Follow-up Attacks . | . . . . . . . . . . . . . . . . . Damage Inflicted 26960 | 94 1019 314 . 522 367 1822 2360 373 3999 2882 1546 1942 1714 2277 2461 3268 Guns 19630 | 52 569 87 . 27 342 939 965 360 3947 2861 1546 1942 1234 1944 1422 1393 Cannons 2298 | . 35 208 . 486 . . . . . . . . . . 207 1362 Explosions 3866 | 42 413 . . . . . 1395 . 40 . . . 436 235 832 473 Melee 818 | . . . . . . 818 . . . . . . . . . . Ramming 348 | . 2 19 . 9 25 65 . 13 12 21 . . 44 98 . 40 Kinetic 19232 | . . 62 . 327 90 886 325 . 3947 2861 1546 1942 1234 1944 1422 2646 Thermal 1934 | 42 156 208 . 186 252 53 640 360 37 . . . . . . . Explosive 3264 | . 329 . . . . . 1395 . . . . . . 235 832 473 Electromagnetic 1364 | 52 532 25 . . . . . . 3 . . . 436 . 207 109 Impact 818 | . . . . . . 818 . . . . . . . . . . Slashing . | . . . . . . . . . . . . . . . . . Piercing . | . . . . . . . . . . . . . . . . . Highest Corruption 19 | . 2 2 2 18 . . . . 2 2 19 19 5 13 13 7 Average Corruption 4 | . 2 2 2 2 . . . . 1 2 14 12 3 7 13 3 Corruption Purged 19 | . . . . . . . . . . . . 19 . . . . Corruption Blocked . | . . . . . . . . . . . . . . . . . Effects 260 | . 19 21 9 31 . . . . 19 18 21 12 1 33 67 9 Message Errors 57 | . 6 1 1 9 . . . . 2 3 2 1 . 10 19 3 Matter Fused 65 | . 6 6 1 7 . . . . 3 7 10 1 1 7 14 2 Heat Flow Errors 33 | . 1 4 . 9 . . . . . 3 2 1 . 5 7 1 Energy Discharges 35 | . 3 3 3 2 . . . . 9 1 1 1 . 1 10 1 Parts Rejected 1 | . . . . . . . . . 1 . . . . . . . Parts Fused 2 | . . 1 1 . . . . . . . . . . . . . Data Loss (minor) 37 | . 3 3 2 1 . . . . 1 4 4 6 . 2 9 2 Data Loss (major) 10 | . . 1 1 1 . . . . 1 . 1 . . 3 2 . Misfires 7 | . . . . 1 . . . . 1 . . 1 . 2 2 . Alerts 7 | . . 2 . 1 . . . . 1 . 1 . . . 2 . Misdirections 1 | . . . . . . . . . . . . . . 1 . . Weapon Failures 5 | . . . . . . . . . . . . 1 . 2 2 . Overload Shots . | . . . . . . . . . . . . . . . . . Overflow Damage 435 | 11 1 9 . . . 306 28 . . . . . 26 14 40 . Projectiles 9 | . . 9 . . . . . . . . . . . . . . Explosions 112 | 11 1 . . . . . 28 . . . . . 26 6 40 . Melee 314 | . . . . . . 306 . . . . . . . 8 . . Knockbacks 17 | . . . . 2 . 1 . . . . . . 1 1 . 12 Impact 5 | . . . . 1 . 1 . . . . . . 1 1 . 1 Kinetic 11 | . . . . 1 . . . . . . . . . . . 10 Secondary 1 | . . . . . . . . . . . . . . . . 1 Self-Inflicted Damage 573 | . 101 . . . . . 104 . 62 . . . 100 . 206 . Shots 15 | . 4 . . . . . 3 . 2 . . . 1 . 5 . Rammed 27 | . . 1 . 2 4 6 . 2 2 3 . . 3 3 . 1 Targets Rammed 34 | . 1 2 . 2 4 9 . 2 2 3 . . 4 4 . 1 Kicked 1 | . 1 . . . . . . . . . . . . . . . Crushed 6 | . . 1 . . . 3 . . . . . . 1 1 . . Highest Temperature 660 | 56 141 276 . 281 132 . 254 124 384 324 420 235 41 245 234 660 Average Temperature 102 | 25 46 79 . 93 44 . 59 51 97 112 131 27 14 107 77 251 Received Heat Transfer 2596 | . 180 72 . 84 63 126 585 45 204 113 43 . 75 495 163 348 Effects 34 | . . . . 1 . . . . 1 . . . . . . 32 Shutdowns 6 | . . . . . . . . . 1 . . . . . . 5 Energy Bleed 1 | . . . . . . . . . . . . . . . . 1 Interference 7 | . . . . 1 . . . . . . . . . . . 6 Matter Decay 2 | . . . . . . . . . . . . . . . . 2 Damage (minor) 3 | . . . . . . . . . . . . . . . . 3 Damage (major) 13 | . . . . . . . . . . . . . . . . 13 Damage (core) 2 | . . . . . . . . . . . . . . . . 2 Siege Activations 4 | . . . . . . . . . . . . . . 1 . 3 Total Turns 90 | . . . . . . . . . . . . . . 1 . 89 Longest Duration 63 | . . . . . . . . . . . . . . 1 . 63 Robots Corrupted . | . . . . . . . . . . . . . . . . . Combat Hostiles . | . . . . . . . . . . . . . . . . . Parts Fried 12 | . 1 . . . . 10 . . . . . . . . 1 . Impact Corruptions 12 | . . . . . . 11 . . . . . . . 1 . . Robots Melted . | . . . . . . . . . . . . . . . . . Combat Hostiles . | . . . . . . . . . . . . . . . . . Parts Melted 5 | . . . . . . 1 3 1 . . . . . . . . Heat Transferred 3991 | . 335 444 . 407 555 185 1349 666 50 . . . . . . . Parts Sabotaged . | . . . . . . . . . . . . . . . . . Parts Stolen . | . . . . . . . . . . . . . . . . . Parts Stripped . | . . . . . . . . . . . . . . . . . Power Chain Reactions 3 | 1 1 . . . . . . . 1 . . . . . . . Alert | -11 -10 -10 -10 -9 -8 -8 -8 -8 -6 -6 -6 -6 -6 -5 -5 -4 ------- Run | Yrd Mat Min Exi Min Mat Sto Gar Rec Fac Ext Cet Arc Hub Fac Gar Fac Peak Influence 1731 | 10 377 55 . 75 82 440 1731 813 633 413 440 409 785 588 1510 1265 Initial 792 | . 6 . . . 4 . 286 778 388 279 208 96 72 384 404 792 Average 360 | 8 126 31 . 20 18 181 865 476 300 156 249 337 426 409 1069 1037 Maximum Alert Level 5 | . 1 . . . . 2 5 3 2 2 2 2 3 2 4 4 Low Security (%) 42 | 100 85 100 . 100 100 53 . . 23 64 2 5 9 . . . Level 1 27 | . 14 . . . . 38 23 52 61 28 94 64 24 62 . . Level 2 12 | . . . . . . 7 11 31 14 6 2 29 65 37 17 . Level 3 9 | . . . . . . . 37 15 . . . . . . 33 56 Level 4 7 | . . . . . . . 24 . . . . . . . 48 43 Level 5 . | . . . . . . . 3 . . . . . . . . . High Security . | . . . . . . . . . . . . . . . . . Max Security . | . . . . . . . . . . . . . . . . . Squads Dispatched 47 | . 3 . . . 10 8 . . 9 1 . . 5 7 . 4 Investigation 8 | . 2 . . . 1 2 . . . . . . 2 . . 1 Extermination 7 | . . . . . . . . . 3 . . . 1 2 . 1 Reinforcement 18 | . 1 . . . 6 2 . . 2 1 . . 2 3 . 1 Assault 4 | . . . . . . . . . 1 . . . . 2 . 1 Garrison 10 | . . . . . 3 4 . . 3 . . . . . . . Intercept . | . . . . . . . . . . . . . . . . . Searches Triggered . | . . . . . . . . . . . . . . . . . Construction Impeded 3 | . . . . . . . . . 1 1 . . . 1 . . Haulers Reinforced 2 | . . . . . . . . . . . . . 1 1 . . Active Scanning Responses . | . . . . . . . . . . . . . . . . . Cargo Convoy Interrupts . | . . . . . . . . . . . . . . . . . Stealth | -11 -10 -10 -10 -9 -8 -8 -8 -8 -6 -6 -6 -6 -6 -5 -5 -4 --------- Run | Yrd Mat Min Exi Min Mat Sto Gar Rec Fac Ext Cet Arc Hub Fac Gar Fac Distress Signals 19 | . . . . . 5 4 . . 3 2 2 . . 1 . 2 Communications Jammed . | . . . . . . . . . . . . . . . . . Distress Signals . | . . . . . . . . . . . . . . . . . Times Spotted 300 | . 20 8 . 15 8 25 31 3 28 25 10 23 27 29 22 26 Peak Tracking Total 11 | . 5 2 . 4 2 4 8 1 4 4 5 2 7 11 5 7 Tactical Retreats 19 | . . 1 . 1 1 3 . . 2 1 . . . 6 4 . Traps | -11 -10 -10 -10 -9 -8 -8 -8 -8 -6 -6 -6 -6 -6 -5 -5 -4 ------- Run | Yrd Mat Min Exi Min Mat Sto Gar Rec Fac Ext Cet Arc Hub Fac Gar Fac Traps Triggered 10 | . 1 . . . 1 1 7 . . . . . . . . . Indirectly . | . . . . . . . . . . . . . . . . . Trap Hack Attempts . | . . . . . . . . . . . . . . . . . Triggered . | . . . . . . . . . . . . . . . . . Disarmed . | . . . . . . . . . . . . . . . . . Reprogrammed . | . . . . . . . . . . . . . . . . . Reused . | . . . . . . . . . . . . . . . . . Traps Extracted . | . . . . . . . . . . . . . . . . . Installed . | . . . . . . . . . . . . . . . . . Triggered . | . . . . . . . . . . . . . . . . . Machines | -11 -10 -10 -10 -9 -8 -8 -8 -8 -6 -6 -6 -6 -6 -5 -5 -4 ---------- Run | Yrd Mat Min Exi Min Mat Sto Gar Rec Fac Ext Cet Arc Hub Fac Gar Fac Machines Disabled 51 | . 1 . . . . 1 7 . 4 3 . 3 5 4 9 14 Max in Single Turn 6 | . 1 . . . . 1 1 . 3 1 . 1 3 2 2 6 Garrison Access 1 | . . . . . . . . . 1 . . . . . . . Garrison Relay 8 | . . . . . . . 6 . . . . . . . 2 . Phase Generator 1 | . . . . . . . . . . . . . . . 1 . Network Hub 2 | . . . . . . . . . . . . . 2 . . . Machines Repaired . | . . . . . . . . . . . . . . . . . Machines Dismantled 1 | . . . . . . . . . . . 1 . . . . . Machines Sabotaged 1 | . . . . . . . . . . . . . 1 . . . Overloaded Fab Kills . | . . . . . . . . . . . . . . . . . Hacking | -11 -10 -10 -10 -9 -8 -8 -8 -8 -6 -6 -6 -6 -6 -5 -5 -4 --------- Run | Yrd Mat Min Exi Min Mat Sto Gar Rec Fac Ext Cet Arc Hub Fac Gar Fac Machines Accessed 81 | . 9 . 2 . 5 13 3 9 8 9 3 1 5 4 2 8 Terminals 53 | . 7 . . . 3 10 3 4 3 9 3 . 4 1 2 4 Fabricators 5 | . . . . . . . . . 1 . . . . 1 . 3 Repair Stations 3 | . . . . . . 2 . . 1 . . . . . . . Recycling Units 7 | . 2 . . . . . . 5 . . . . . . . . Scanalyzers 5 | . . . . . 2 . . . 1 . . . . 1 . 1 Garrison Access 5 | . . . . . . 1 . . 2 . . . 1 1 . . Total Hacks 214 | . 21 . 2 . 14 26 6 18 21 18 7 25 9 10 3 34 Successful 111 | . 7 . 2 . 9 15 1 10 14 9 1 25 1 5 2 10 Failed 103 | . 14 . . . 5 11 5 8 7 9 6 . 8 5 1 24 Catastrophic 29 | . 5 . . . . 1 2 2 2 2 5 . 2 . 1 7 Database Lockouts . | . . . . . . . . . . . . . . . . . Manual 53 | . 11 . 1 . 4 4 . 14 4 4 1 1 7 . . 2 Terminals 119 | . 19 . . . 5 21 6 10 8 18 7 . 7 1 3 14 Fabricators 18 | . . . . . . . . . 4 . . . . 4 . 10 Repair Stations 6 | . . . . . . 4 . . 2 . . . . . . . Recycling Units 10 | . 2 . . . . . . 8 . . . . . . . . Scanalyzers 26 | . . . . . 9 . . . 4 . . . . 3 . 10 Garrison Access 8 | . . . . . . 1 . . 3 . . . 2 2 . . Terminal Hacks 67 | . 5 . 2 . 1 9 1 4 3 9 1 25 . 1 2 4 Record 29 | . . . 1 . . . . . 2 . 1 25 . . . . Robot Analysis 1 | . 1 . . . . . . . . . . . . . . . Prototype ID Bank 8 | . 4 . . . . 2 . 2 . . . . . . . . Open Door 8 | . . . . . . 3 1 . . 4 . . . . . . Open DSF 3 | . . . . . . . . . 1 . . . . 1 . 1 Branch Access Points 1 | . . . . . 1 . . . . . . . . . . . Terminal Index 4 | . . . . . . 1 . 1 . 1 . . . . . 1 Alert Level 1 | . . . . . . . . . . 1 . . . . . . Unreport Threat 3 | . . . . . . . . . . 3 . . . . . . Locate Traps 2 | . . . . . . 1 . . . . . . . . . 1 Hauler Manifests 2 | . . . . . . 1 . 1 . . . . . . . . Registered Components 1 | . . . . . . 1 . . . . . . . . . . Zone Layout 1 | . . . . . . . . . . . . . . . . 1 Garrison Registry 1 | . . . . . . . . . . . . . . . 1 . Patrol Navigation 1 | . . . . . . . . . . . . . . . 1 . Derelict Proto ID Bank 1 | . . . 1 . . . . . . . . . . . . . Fabricator Hacks 9 | . . . . . . . . . 4 . . . . 3 . 2 Network Status 2 | . . . . . . . . . . . . . . 1 . 1 Load Schematic 4 | . . . . . . . . . 2 . . . . 1 . 1 Build 3 | . . . . . . . . . 2 . . . . 1 . . Repair Station Hacks 6 | . . . . . . 4 . . 2 . . . . . . . Scan Component 3 | . . . . . . 2 . . 1 . . . . . . . Repair 3 | . . . . . . 2 . . 1 . . . . . . . Recycling Unit Hacks . | . . . . . . . . . . . . . . . . . Scanalyzer 16 | . . . . . 8 . . . 4 . . . . . . 4 Insert Component 8 | . . . . . 4 . . . 2 . . . . . . 2 Analyze 8 | . . . . . 4 . . . 2 . . . . . . 2 Garrison Access Hacks 3 | . . . . . . 1 . . 1 . . . . 1 . . Unlock Access 2 | . . . . . . 1 . . . . . . . 1 . . Seal Access 1 | . . . . . . . . . 1 . . . . . . . Unauthorized Hacks 10 | . 2 . . . . 1 . 6 . . . . 1 . . . Terminals 2 | . . . . . . 1 . . . . . . 1 . . . Botnet 1 | . . . . . . 1 . . . . . . . . . . Sabotage 1 | . . . . . . . . . . . . . 1 . . . Fabricators . | . . . . . . . . . . . . . . . . . Repair Stations . | . . . . . . . . . . . . . . . . . Recycling Units 8 | . 2 . . . . . . 6 . . . . . . . . Recyclers 1 | . . . . . . . . 1 . . . . . . . . Tunnel 7 | . 2 . . . . . . 5 . . . . . . . . Scanalyzers . | . . . . . . . . . . . . . . . . . Garrison Access . | . . . . . . . . . . . . . . . . . Data Cores Recovered . | . . . . . . . . . . . . . . . . . Used . | . . . . . . . . . . . . . . . . . Hacking Detections 53 | . 7 . . . 4 7 3 5 6 6 3 . 4 1 . 7 Full Trace Events 4 | . . . . . 1 1 . . . . . . 1 . . 1 Feedback Events . | . . . . . . . . . . . . . . . . . Feedback Blocked . | . . . . . . . . . . . . . . . . . Robot Schematics Acquired . | . . . . . . . . . . . . . . . . . Robots Built . | . . . . . . . . . . . . . . . . . Authchips . | . . . . . . . . . . . . . . . . . Time . | . . . . . . . . . . . . . . . . . Total Robot Build Rating . | . . . . . . . . . . . . . . . . . Part Schematics Acquired 7 | . . . . . 3 . . . 2 . . . . . . 2 Parts Built 6 | . . . . . . . . . 4 . . . . 2 . . Authchips 3 | . . . . . . . . . 2 . . . . 1 . . Time 121 | . . . . . . . . . 48 . . . . 73 . . Total Part Build Rating 18 | . . . . . . . . . 12 . . . . 6 . . Parts Repaired 3 | . . . . . . 2 . . 1 . . . . . . . Time 114 | . . . . . . 76 . . 38 . . . . . . . Parts Recycled . | . . . . . . . . . . . . . . . . . Recycled Matter . | . . . . . . . . . . . . . . . . . Retrieved Matter . | . . . . . . . . . . . . . . . . . Retrieved Components . | . . . . . . . . . . . . . . . . . Parts Scanalyzed 8 | . . . . . 4 . . . 2 . . . . . . 2 Part Schematics Acquired 7 | . . . . . 3 . . . 2 . . . . . . 2 Parts Damaged . | . . . . . . . . . . . . . . . . . Bothacking | -11 -10 -10 -10 -9 -8 -8 -8 -8 -6 -6 -6 -6 -6 -5 -5 -4 ------------ Run | Yrd Mat Min Exi Min Mat Sto Gar Rec Fac Ext Cet Arc Hub Fac Gar Fac Used RIF Installer . | . . . . . . . . . . . . . . . . . Robots Hacked . | . . . . . . . . . . . . . . . . . Non-combat . | . . . . . . . . . . . . . . . . . Combat . | . . . . . . . . . . . . . . . . . Robot Hacks Applied . | . . . . . . . . . . . . . . . . . Relay Couplers Released 32 | . . . . . . . 24 . . . . . . . 8 . Machine Destruction 32 | . . . . . . . 24 . . . . . . . 8 . Fabnet Peak Effective % . | . . . . . . . . . . . . . . . . . Robots Rewired 19 | . . . . . . . 6 . . 11 . . . . 2 . Allies Hacked . | . . . . . . . . . . . . . . . . . Hacks Repelled . | . . . . . . . . . . . . . . . . . Allies | -11 -10 -10 -10 -9 -8 -8 -8 -8 -6 -6 -6 -6 -6 -5 -5 -4 -------- Run | Yrd Mat Min Exi Min Mat Sto Gar Rec Fac Ext Cet Arc Hub Fac Gar Fac Total Allies 38 | . . . . . . 10 6 . . 15 5 . . . 2 . Largest Group 10 | . . . . . . 10 3 3 1 9 9 6 4 . 2 2 Highest-Rated Group 661 | . . . . . . 173 76 63 21 401 661 632 384 . 165 165 Highest-Rated Ally 159 | . . . . . . 29 31 21 21 159 159 152 96 . 85 85 Total Orders 4 | . . . . . . . . . . . . . . . . 4 ROAM 2 | . . . . . . . . . . . . . . . . 2 FOLLOW 2 | . . . . . . . . . . . . . . . . 2 Ally Attacks 343 | . . . . . . 87 30 8 7 54 46 28 54 . . 29 Total Damage 8835 | . . . . . . 1120 573 240 168 968 1598 871 2182 . . 1115 Kills 53 | . . . . . . 11 5 1 . 8 9 4 11 . . 4 Allies Corrupted . | . . . . . . . . . . . . . . . . . Allies Melted . | . . . . . . . . . . . . . . . . . Intel | -11 -10 -10 -10 -9 -8 -8 -8 -8 -6 -6 -6 -6 -6 -5 -5 -4 ------- Run | Yrd Mat Min Exi Min Mat Sto Gar Rec Fac Ext Cet Arc Hub Fac Gar Fac Robot Analysis Total 1 | . 1 . . . . . . . . . . . . . . . Derelict Logs Recovered 3 | . . 2 . 1 . . . . . . . . . . . . Drone Launches . | . . . . . . . . . . . . . . . . . Drone Recoveries . | . . . . . . . . . . . . . . . . . Exploration | -11 -10 -10 -10 -9 -8 -8 -8 -8 -6 -6 -6 -6 -6 -5 -5 -4 ------------- Run | Yrd Mat Min Exi Min Mat Sto Gar Rec Fac Ext Cet Arc Hub Fac Gar Fac Turns Passed 25202 | 31 1680 1759 905 2496 1817 2393 2335 2522 2115 1550 574 454 596 1364 1667 944 Spaces Moved 9518 | 17 676 530 283 592 469 725 830 1070 933 736 294 212 324 665 737 425 Core . | . . . . . . . . . . . . . . . . . Treads 9180 | . 355 530 283 592 469 725 830 1070 933 736 294 212 324 665 737 425 Legs 338 | 17 321 . . . . . . . . . . . . . . . Wheels . | . . . . . . . . . . . . . . . . . Hover . | . . . . . . . . . . . . . . . . . Flight . | . . . . . . . . . . . . . . . . . Fastest Speed 120 | 120 120 320 320 320 237 243 237 149 150 161 156 160 160 160 162 166 Average Speed 220 | 120 225 320 320 330 245 244 241 227 200 176 159 160 160 160 172 166 Slowest Speed 480 | 120 320 320 320 480 250 250 243 305 225 241 241 160 160 163 250 166 Overloaded Moves . | . . . . . . . . . . . . . . . . . Propulsion Burnouts . | . . . . . . . . . . . . . . . . . Robots Hopped 1 | . . . . . . . 1 . . . . . . . . . Cave-ins Triggered . | . . . . . . . . . . . . . . . . . Exploration Rate (%) 63 | 4 94 91 69 97 36 92 76 98 23 86 78 81 46 14 79 15 Regions Visited 16 Branch Regions 9 Pre-discovered Areas 10 | . 2 1 1 1 . . . 5 . . . . . . . . Known Exits Taken 4 | . . 1 . . 1 1 . . . . . . . 1 . . Unknown Exits Taken 10 | 1 1 . 1 1 . . . 1 1 1 1 1 1 . . . Scrap Searched 3 | . . 1 . 2 . . . . . . . . . . . . Spaces Dug 38 | . . . . . . 9 21 . . . . . . . 7 1 Terrain Destroyed 607 | 8 29 . . . . 9 48 . 22 4 3 5 165 101 142 71 Melee 33 | . . . . . . 9 16 . . . . . . . 7 1 Projectile 122 | . . . . . . . . . 19 4 3 5 3 42 7 39 AOE 450 | 8 29 . . . . . 32 . 3 . . . 162 57 128 31 Terrain Rammed . | . . . . . . . . . . . . . . . . . Walls Destroyed . | . . . . . . . . . . . . . . . . . Machines Disabled . | . . . . . . . . . . . . . . . . . Actions | -11 -10 -10 -10 -9 -8 -8 -8 -8 -6 -6 -6 -6 -6 -5 -5 -4 --------- Run | Yrd Mat Min Exi Min Mat Sto Gar Rec Fac Ext Cet Arc Hub Fac Gar Fac Total 12893 | 22 769 561 286 1071 1112 1214 1025 1135 1174 991 391 328 396 851 1005 562 Wait 1915 | . 17 2 . 427 544 376 13 9 110 98 15 57 44 78 109 16 Move 9499 | 16 675 529 282 591 468 724 827 1069 932 735 293 211 323 665 734 425 Hop 1 | . . . . . . . 1 . . . . . . . . . Pick Up 167 | . 21 5 1 3 28 4 . 13 12 14 10 5 1 14 19 17 Fast Attach 68 | 1 . 2 . . 4 11 2 1 8 . 9 8 . 7 8 7 Attach 65 | . 5 1 . 6 5 3 5 6 4 2 1 1 1 13 6 6 Detach 17 | . . . . . . 1 . 6 1 . 2 . . 2 2 3 Swap 111 | . 6 1 . 4 12 7 17 4 18 9 7 2 2 8 7 7 Drop 180 | 2 6 2 3 . 29 17 . 13 12 13 25 12 . 7 18 21 Fire 593 | 3 38 17 . 38 18 41 47 12 75 50 21 32 21 53 69 58 Melee 58 | . . . . . . 21 24 . . . . . . . 12 1 Ram 1 | . . . . . . . . . . . . . . 1 . . Kick 1 | . 1 . . . . . . . . . . . . . . . Crush 32 | . . 2 . 2 4 9 . 2 2 3 . . 4 3 . 1 Escape Stasis 14 | . . . . . . . 14 . . . . . . . . . Rewire 163 | . . . . . . . 75 . . 67 . . . . 21 . Trap . | . . . . . . . . . . . . . . . . . Miscellaneous 8 | . . . . . . . . . . . 8 . . . . . Route ------- -11/Scrapyard -10/Materials (discovered 4 exits: [*Mat x3] / [*Min]) -10/Mines (discovered 3 exits: [*Mat x2] / *Exi) -10/Exiles (discovered 2 exits: [*Min x2]) -9/Mines (discovered 2 exits: *Mat x2) -8/Materials -8/Storage (discovered 3 exits: [*Fac] / *Rec / Gar) -8/Garrison (discovered 3 exits: *Rec x3) -8/Recycling -6/Factory -6/Extension (discovered 2 exits: *Fac / *Cet) -6/Cetus (discovered 2 exits: *Fac / *Arc) -6/Archives (discovered 3 exits: *Fac / *Hub x2) -6/Hub_04(d) (discovered 2 exits: *Fac x2) -5/Factory -5/Garrison (discovered 3 exits: *Fac x3) -4/Factory History --------- Turn | Location | Event 5 | -11/Scrapyard | Discovered new exit (range 2) 32 | -11/Scrapyard | Entered Materials 157 | -10/Materials | Destroyed 7 combat bots 288 | -10/Materials | Discovered new exit (range 12) 302 | -10/Materials | Build established: Mutant 448 | -10/Materials | Discovered new exit (range 6) 1142 | -10/Materials | Discovered new exit (range 15) 1667 | -10/Materials | Discovered new exit (range 9) 1712 | -10/Materials | Entered Mines 1888 | -10/Mines | Assembled infested the area 1893 | -10/Mines | Assisted by a Guerilla fighting off Assembled 2570 | -10/Mines | Learned location of Mines (-9) 2586 | -10/Mines | Discovered new exit (range 8) 2702 | -10/Mines | Identified exit to Exiles 3051 | -10/Mines | Discovered new exit (range 8) 3409 | -10/Mines | Found a damaged Exp. Sensor Array with a note attached 3416 | -10/Mines | Found Prototype Device 3458 | -10/Mines | Deemed a non-threat by the Exiles lab entrance 3471 | -10/Mines | Entered Exiles 3513 | -10/Exiles | Discovered new exit (range 15) 3548 | -10/Exiles | Met 8R-AWN 3606 | -10/Exiles | Met EX-HEX 3699 | -10/Exiles | Met EX-BIN 3743 | -10/Exiles | Aligned with FarCom system 3747 | -10/Exiles | Given EX-Vault access code 3823 | -10/Exiles | Opened EX-Vault 3854 | -10/Exiles | Found XL Autogun Array 3925 | -10/Exiles | Warned to stay clear of 0b10 Research branches 4120 | -10/Exiles | Met EX-DEC 4229 | -10/Exiles | Learned location of Zion (-7) 4335 | -10/Exiles | Discovered new exit (range 15) 4376 | -10/Exiles | Left Exiles lab with XL Autogun Array 4376 | -10/Exiles | Entered Mines 4719 | -9/Mines | Lost 3 parts (1p1n1w) 4890 | -9/Mines | Core integrity fell below 50% 5144 | -9/Mines | Discovered new exit (range 9) 5423 | -9/Mines | Received a Rocket Launcher from a helpful Derelict 5555 | -9/Mines | Learned 2 Materials zone layouts 5754 | -9/Mines | Excavation squad dispatched 5754 | -9/Mines | A large section of the Mines collapsed 6667 | -9/Mines | Discovered new exit (range 9) 6781 | -9/Mines | Lost 3 parts (1p1u1w) 6828 | -9/Mines | Learned location of Storage (-8) 6869 | -9/Mines | System corruption reached 10% 6872 | -9/Mines | Entered Materials 6872 | -8/Materials | Evolved 4 slots: Propulsion x2, Utility x2 7166 | -8/Materials | Build established: Scavenger-Mutant 7356 | -8/Materials | Garrison activated, responded to threat 8048 | -8/Materials | Met 7R-MNS 8104 | -8/Materials | Discovered new exit (range 15) 8248 | -8/Materials | Build established: Mutant 8375 | -8/Materials | Identified exit to Storage 8689 | -8/Materials | Entered Storage 8818 | -8/Storage | Assisted by bots powering up and referring to "LRC-V3" 9072 | -8/Storage | Repaired Hrd. Medium Armor Plating 9131 | -8/Storage | Build established: Commander-Mutant 9138 | -8/Storage | Used back door to open Recycling access 9138 | -8/Storage | Discovered new exit (range 5) 9312 | -8/Storage | Lost 3 allies 9550 | -8/Storage | Lost 3 allies 9781 | -8/Storage | Garrison activated, responded to threat 9993 | -8/Storage | Build established: Scavenger-Mutant 10188 | -8/Storage | Discovered new exit (range 16) 10498 | -8/Storage | Garrison activated, responded to threat 11032 | -8/Storage | Repaired Hrd. Medium Armor Plating 11053 | -8/Storage | Identified exit to Garrison 11082 | -8/Storage | Entered Garrison 11114 | -8/Garrison | Triggered checkpoint 11620 | -8/Garrison | Garrison Relay disabled 11774 | -8/Garrison | Triggered checkpoint 11774 | -8/Garrison | Triggered checkpoint 11819 | -8/Garrison | Lost 3 parts (1u2w) 11827 | -8/Garrison | Destroyed 8 combat bots 11885 | -8/Garrison | Triggered checkpoint 11932 | -8/Garrison | Triggered checkpoint 11976 | -8/Garrison | Triggered checkpoint 11991 | -8/Garrison | Garrison Relay disabled 12082 | -8/Garrison | Build established: Mutant 12131 | -8/Garrison | Discovered new exit (range 11) 12558 | -8/Garrison | Triggered checkpoint 12578 | -8/Garrison | Discovered new exit (range 14) 12628 | -8/Garrison | Garrison Relay disabled 12766 | -8/Garrison | Triggered checkpoint 12846 | -8/Garrison | Triggered checkpoint 12869 | -8/Garrison | Core integrity fell below 50% 12895 | -8/Garrison | Destroyed 7 combat bots 12905 | -8/Garrison | Lost 3 parts (1p1n1u) 12974 | -8/Garrison | Garrison Relay disabled 13218 | -8/Garrison | Discovered new exit (range 8) 13264 | -8/Garrison | Triggered checkpoint 13335 | -8/Garrison | Garrison Relay disabled 13357 | -8/Garrison | Garrison Relay disabled 13417 | -8/Garrison | Entered Recycling 13417 | -8/Recycling | Accompanied by 3 allies 13439 | -8/Recycling | Found Scrap Engine 14048 | -8/Recycling | Discovered new exit (range 16) 15939 | -8/Recycling | Entered Factory 15939 | -6/Factory | Accompanied by 1 ally 15939 | -6/Factory | Evolved 4 slots: Propulsion x2, Weapon x2 16244 | -6/Factory | Build established: Tank 16713 | -6/Factory | Build established: Hacker-Skirmisher 17304 | -6/Factory | Fabricated Arm. Treads (x2) 17336 | -6/Factory | Fabricated Arm. Treads (x2) 17444 | -6/Factory | Repaired Imp. Weapon Shielding 17767 | -6/Factory | Spotted B-75 Beast 17777 | -6/Factory | Destroyed B-75 Beast 17796 | -6/Factory | Garrison activated, responded to threat 17979 | -6/Factory | Build established: Machinist-Tank 18005 | -6/Factory | Discovered new exit (range 15) 18039 | -6/Factory | First assault squad dispatched 18054 | -6/Factory | Entered Extension 18388 | -6/Extension | Lost 4 allies 18506 | -6/Extension | Rescued a captive Derelict 18577 | -6/Extension | Rescued a captive Derelict 19082 | -6/Extension | Destroyed B-75 Beast 19114 | -6/Extension | Destroyed B-75 Beast 19290 | -6/Extension | Rescued A7 19329 | -6/Extension | Disrupted transfer network 19446 | -6/Extension | Rescued a captive Derelict 19575 | -6/Extension | Discovered new exit (range 10) 19577 | -6/Extension | Discovered new exit (range 6) 19604 | -6/Extension | Entered Cetus 19604 | -6/Cetus | Accompanied by 9 allies (A7) 19609 | -6/Cetus | Acquired a Cetus Manufacturing Module code from A7 19626 | -6/Cetus | Spotted Cetus Guard 19626 | -6/Cetus | Spotted Cetus Guard 19629 | -6/Cetus | Spotted Cetus Guard 19632 | -6/Cetus | Spotted Cetus Guard 19644 | -6/Cetus | Allies destroyed Cetus Guard 19645 | -6/Cetus | Destroyed Cetus Guard 19652 | -6/Cetus | Allies destroyed Cetus Guard 19659 | -6/Cetus | Destroyed Cetus Guard 19686 | -6/Cetus | Lost 7 allies 19739 | -6/Cetus | System corruption reached 10% 19788 | -6/Cetus | Started Cetus Manufacturing Module 19813 | -6/Cetus | Manufactured an Enhanced Grunt 19834 | -6/Cetus | Escorted A7 to Cetus Mainframe 19838 | -6/Cetus | Manufactured an Enhanced Grunt 19863 | -6/Cetus | Manufactured an Enhanced Grunt 19888 | -6/Cetus | Manufactured an Enhanced Grunt 19913 | -6/Cetus | Manufactured an Enhanced Grunt 19937 | -6/Cetus | Discovered new exit (range 16) 19969 | -6/Cetus | Spotted Cetus Guard 19970 | -6/Cetus | Spotted Cetus Guard 19976 | -6/Cetus | Spotted Cetus Guard 19977 | -6/Cetus | Spotted Cetus Guard 19978 | -6/Cetus | Allies destroyed Cetus Guard 19979 | -6/Cetus | Allies destroyed Cetus Guard 19982 | -6/Cetus | Allies destroyed Cetus Guard 19987 | -6/Cetus | Allies destroyed Cetus Guard 19989 | -6/Cetus | Discovered new exit (range 16) 19997 | -6/Cetus | Met Revision 17 20137 | -6/Cetus | Build established: Scavenger-Tank 20178 | -6/Cetus | Entered Archives 20178 | -6/Archives | Accompanied by 7 allies (A7) 20183 | -6/Archives | Received a hacking code to weaken MAIN.C 20221 | -6/Archives | Found Prototype Device 20221 | -6/Archives | Identified Exp. Thermal Shield 20237 | -6/Archives | Discovered new exit (range 14) 20254 | -6/Archives | Discovered new exit (range 14) 20413 | -6/Archives | Discovered new exit (range 14) 20589 | -6/Archives | Unable to access archive contents 20605 | -6/Archives | Unable to access archive contents 20632 | -6/Archives | Entered Hub_04(d) 20632 | -6/Hub_04(d) | Accompanied by 4 allies 20683 | -6/Hub_04(d) | Discovered new exit (range 11) 20705 | -6/Hub_04(d) | Spotted B-75 Beast 20733 | -6/Hub_04(d) | Allies destroyed B-75 Beast 21171 | -6/Hub_04(d) | Discovered new exit (range 12) 21172 | -6/Hub_04(d) | Network Hub disabled 21208 | -6/Hub_04(d) | Spotted Lightning 21208 | -6/Hub_04(d) | Spotted Lightning 21211 | -6/Hub_04(d) | Spotted Lightning 21226 | -6/Hub_04(d) | Network Hub disabled 21228 | -6/Hub_04(d) | Entered Factory 21228 | -5/Factory | Evolved 2 slots: Utility x2 21318 | -5/Factory | Identified exit to DSF 21498 | -5/Factory | Build established: Scavenger-Mutant 22100 | -5/Factory | Build established: Scavenger-Tank 22283 | -5/Factory | Fabricated Imp. Weapon Shielding (x2) 22360 | -5/Factory | System corruption reached 10% 22428 | -5/Factory | First assault squad dispatched 22566 | -5/Factory | Identified exit to Garrison 22592 | -5/Factory | Entered Garrison 23020 | -5/Garrison | Phase Generator disabled 23182 | -5/Garrison | Triggered checkpoint 23195 | -5/Garrison | Garrison Relay disabled 23207 | -5/Garrison | Discovered new exit (range 86) 23207 | -5/Garrison | Discovered new exit (range 69) 23207 | -5/Garrison | Discovered new exit (range 75) 23325 | -5/Garrison | Triggered checkpoint 23499 | -5/Garrison | H-XX Assembler disabled 23581 | -5/Garrison | Found Prototype Device 23581 | -5/Garrison | Identified Active Sensor Suite 23651 | -5/Garrison | Attempted to access garrison exit controls, blocked by remote lockdown 23722 | -5/Garrison | Triggered checkpoint 23864 | -5/Garrison | Attempted to access garrison exit controls, blocked by remote lockdown 23946 | -5/Garrison | Triggered checkpoint 24123 | -5/Garrison | Spotted B-75 Beast 24159 | -5/Garrison | Destroyed B-75 Beast 24167 | -5/Garrison | Rewired B-75 Beast 24211 | -5/Garrison | Rewired B-75 Beast 24259 | -5/Garrison | Entered Factory 24259 | -4/Factory | Accompanied by 2 allies 24259 | -4/Factory | Evolved 2 slots: Power x1, Utility x1 24263 | -4/Factory | Identified exit to DSF 24555 | -4/Factory | Spotted B-86 Titan 24558 | -4/Factory | Allies destroyed B-86 Titan 24820 | -4/Factory | Lost 3 parts (1u2w) 24831 | -4/Factory | Destroyed 7 combat bots 25009 | -4/Factory | First assault squad dispatched 25042 | -4/Factory | Build established: Tank 25203 | -4/Factory | Self-destructed Last Messages --------------- 25192_ Slug penetrates B-60 Warrior. 25194_ Power failure, Lgt. Quantum Reactor shutdown. 25194_ Huge Storage Unit destroyed. 25194_ System corrupted by crushing effect (+3). 25194_ R-10 Processor collects Rnf. Quantum Reactor. 25196_ B-60 Warrior suffers critical hit (Destroy). 25196_ B-60 Warrior destroyed. 25196_ Slug penetrates Nuclear Reactor. 25196_ Nuclear Reactor explodes. 25196_ Fusion Modulator explodes. 25197_ U-05 Engineer builds a Wall. 25197_ R-10 Processor collects Hvy. Phase Cannon. 25198_ U-05 Engineer builds a Wall. 25199_ Slug penetrates G-73 Enforcer. 25199_ G-73 Enforcer knocked back. 25200_ R-10 Processor collects Wheel. 25202_ Overheating: Core damaged (-172). 25202_ Adv. Heat Sink destroyed. 25202_ U-05 Engineer builds a Wall. 25203_ Overheating: Matter decay (-2). Map ----- +----------------------------------------------------+ | ?????????????????????????????????????????????????? | | ?????????????????????????????????????????????????? | | ?????????????????????????????????????????????????? | | ?????????????????????????????????????????????????? | | ?????????????????????????????????????????????????? | | ?????????????????????????????????????????????????? | | ?????????????????????????????????????????????????? | | ?????????????????????????????????????????????????? | | ?????????????????????????????????????????????????? | | ?????????????????????????????????????????????????? | | ????????????????????????????????????????????????## | | ???????????????????????????????????????????????? | | ???????????????????????#????????????????????????# | | ???????????????????????# ??????#????????????????# | | ???????????????????????# ????? #????????????????# | | ??????????????????######+#####+#????????#########+ | | ??????????????????? #????????# | | ??????????????????? """ #??????? # | | ??????????????????# """ #??????? # | | ??????????????????# """ #??????? # | | ??????????????????# #??????? # | | ??????????????????# """"" ##?????? # | | ??????????????????# """"" ## """" # | | ??????????????????# """!!! ## """" # | | ??????????????????# /!=!! ## """" # | | ??????????????????# %=[!@=%= ## """" # | | ??????????????????# m %=%! #?? """" # | | ??????????????????# % g g]u #???? # | | ???????????????##+####;##R### ####+#####+#+### | | ??????????? %= % | | ??????????? ! | | ??????????? "" | | ???????????? "F" "" """ # | | ???????????? " """ """ # | | ????????????? ######### "" """ """ # | | ??????????????????????# "" # | | ??????????????????????# """ """ | | ??????????????????????# "" """ """ | | ??????????????????????+ " """ """ """ | | ??????????????????????# ? ? | | ??????????????????????# ? ??? | | ??????????????????????#############?# ? ??? | | ????????????????????????????????????? ? ??? ? | | ?????????????????????????????????????/?? ""???"??? | | ?????????????????????????????????????/???"???????? | | ?????????????????????????????????????????????????? | | ?????????????????????????????????????????????????? | | ?????????????????????????????????????????????????? | | ?????????????????????????????????????????????????? | | ?????????????????????????????????????????????????? | +----------------------------------------------------+ Best States ------------- Heat Dissipation 70 Energy Generation 39 Energy Capacity 565 Matter Stores 300 Matter Capacity 300 Sight Range 16 Terrain Scan Density 10 Jamming Range 16 Armor Coverage 1650 Resistance: KI 20 Resistance: TH 30 Weapon Shielding 66 Evasion (%) 55 Recoil Reduction 6 Kinecelleration 40 Offensive Hacking 30 Authchip Count 6 Item Schematics ----------------- Med. Storage Unit | -8/Materials | Scanalyzed Arm. Treads | -8/Materials | Scanalyzed Adv. Treads | -8/Materials | Scanalyzed Imp. Medium Treads | -6/Factory | Scanalyzed Imp. Weapon Shielding | -6/Factory | Scanalyzed Arm. Heavy Treads | -4/Factory | Scanalyzed Centrium Medium Armor Plating | -4/Factory | Scanalyzed Robot Schematics ------------------ None Fabricated ------------ Arm. Treads | x2 | -6/Factory | Authchip Arm. Treads | x2 | -6/Factory | Authchip Imp. Weapon Shielding | x2 | -5/Factory | Authchip Alien Tech Used ----------------- None Achievements -------------- Can't Touch This I Spy Turtlemind Challenges ------------ None Game ------ Seed DeepGodVibroblade Manual? 0 Play Time 03:49:41 Cumulative 53.2 hours Start 2024.04.19 @ 21:33:27 End 2024.04.20 @ 02:05:08 Sessions 1 Manual Loads 0 Difficulty Rogue Special Mode None Game No. 30 Rogue 30 Adventurer 0 Explorer 0 Win Type - Total 0 Types 0/0/0/0/0/0/0/0/0 Lore% 27 Gallery% 36 Achievement% 32 Wizard Run 0 Options --------- Layout 0 ASCII 0 Keyboard 0 Movement Mouse Keybinds 1 Fullscreen 1 Font 18/SmallcapsGlow Map View 76x50 Zoom Use 0% Tactical HUD 1 Map Filters NONE Filters NONE Steam 1 RUN: 315def39-c2c9-4864-92bc-0a461b8844ce